bitfinex/quotes_SOLUSD_20260108
["timestamp","ask_amount","ask_price","bid_price","bid_amount"]
[1767884077937,26.7336826,134.28,134.23,0.71448519]
[1767884078137,5.57842308,134.27,134.23,0.71448519]
[1767884078446,5.57842308,134.26,134.21,0.71448519]
[1767884078648,5.57842308,134.25,134.21,0.71448519]
[1767884078841,13.02766327,134.25,134.21,0.71448519]
[1767884079462,7.44924019,134.25,134.22,0.71448519]
[1767884080460,7.44847197,134.26,134.22,0.71448519]
[1767884080652,13.02689505,134.26,134.22,0.71448519]
[1767884080856,7.44847197,134.26,134.22,6.29290827]
[1767884081043,31.64748197,134.26,134.22,0.71448519]
[1767884081237,5.57842308,134.25,134.22,0.71448519]
[1767884082158,26.06905889,134.26,134.22,0.71448519]
[1767884082366,31.64748197,134.26,134.22,0.71448519]
[1767884082965,26.06905889,134.26,134.22,0.71448519]
[1767884083169,31.64748197,134.26,134.22,0.71448519]
[1767884083351,7.44847197,134.26,134.22,6.29290827]
[1767884083555,0.66830755,134.31,134.25,6.29290827]
[1767884083864,0.66830755,134.31,134.25,0.71448519]
[1767884083865,5.57842308,134.29,134.25,0.71448519]
[1767884084259,13.58,134.32,134.23,13.6]
[1767884084260,5.57842308,134.27,134.23,13.6]
[1767884084768,5.57842308,134.27,134.23,14.31448519]
[1767884085171,7.44823476,134.26,134.23,14.31448519]
[1767884085951,13.02665784,134.26,134.21,6.29290827]
[1767884086352,5.57842308,134.25,134.22,0.71448519]
[1767884086553,5.57842308,134.24,134.2,14.31448519]
[1767884086762,5.57842308,134.24,134.21,0.71448519]
[1767884086961,26.73712923,134.26,134.21,0.71448519]
[1767884087166,5.57842308,134.24,134.21,0.71448519]
[1767884087667,5.57842308,134.22,134.18,0.71448519]
[1767884087974,5.57842308,134.21,134.18,0.71448519]
[1767884088177,6.24673063,134.19,134.14,0.91448519]
[1767884088360,5.57842308,134.18,134.14,0.91448519]
[1767884088878,5.57842308,134.15,134.09,0.71448519]
[1767884089056,0.66830755,134.18,134.11,0.71448519]
[1767884089259,7.45212012,134.19,134.15,0.71448519]
[1767884089459,13.69885075,134.19,134.12,0.71448519]
[1767884089664,5.57842308,134.18,134.13,6.29290827]
[1767884089868,6.24673063,134.18,134.13,0.71448519]
[1767884090059,0.66830755,134.18,134.13,0.71448519]
[1767884090265,5.57842308,134.14,134.09,0.71448519]
[1767884090474,5.57842308,134.14,134.09,6.29290827]
[1767884090676,0.66830755,134.15,134.08,13.6]
[1767884090677,0.66830755,134.15,134.1,6.29290827]
[1767884090975,5.57842308,134.13,134.08,14.31448519]
[1767884091159,13.88432314,134.18,134.1,0.71448519]
[1767884091160,19.30412906,134.16,134.1,0.71448519]
[1767884091354,5.57842308,134.14,134.1,6.29290827]
[1767884091553,5.57842308,134.14,134.1,0.71448519]
[1767884091878,5.57842308,134.13,134.08,14.31448519]
[1767884092178,6.24673063,134.14,134.09,5.57842308]
[1767884092487,0.66830755,134.14,134.09,5.57842308]
[1767884092654,5.57842308,134.13,134.08,0.71448519]
[1767884092852,5.57842308,134.13,134.09,5.57842308]
[1767884093058,13.03443262,134.12,134.08,0.71448519]
[1767884093274,5.57842308,134.11,134.07,19.89290827]
[1767884093984,0.66830755,134.1,134.03,0.2]
[1767884094181,5.57842308,134.07,134.03,0.2]
[1767884094363,0.66830755,134.08,134.03,0.2]
[1767884094562,0.66830755,134.11,134.03,0.2]
[1767884094762,5.57842308,134.09,134.05,5.57842308]
[1767884095081,7.45823389,134.08,134.03,19.37842308]
[1767884095260,5.57842308,134.09,134.05,5.57842308]
[1767884095456,6.24673063,134.09,134.04,5.57842308]
[1767884095662,6.24673063,134.09,134.03,13.8]
[1767884095663,0.66830755,134.09,134.06,5.57842308]
[1767884095859,13.03554463,134.1,134.06,5.57842308]
[1767884096265,13.70385218,134.1,134.06,5.57842308]
[1767884096465,6.24673063,134.09,134.03,14.51448519]
[1767884096670,6.24673063,134.09,134.03,0.91448519]
[1767884096979,6.24673063,134.08,134.04,13.6]
[1767884097174,0.66830755,134.08,134.04,13.6]
[1767884097374,8.12665245,134.08,134.04,13.6]
[1767884097574,8.12665245,134.08,134.04,19.17842308]
[1767884098078,7.4578764,134.09,134.05,5.57842308]
[1767884098657,5.57842308,134.08,134.03,6.49290827]
[1767884098858,5.57842308,134.06,134.03,0.2]
[1767884099082,6.24673063,134.07,134.04,13.6]
[1767884099265,13.0381251,134.06,134.04,13.6]
[1767884099788,0.66830755,134.09,134.04,13.6]
[1767884100180,5.57842308,134.08,134.03,7.6606727]
[1767884100372,5.57842308,134.07,134.05,13.6]
[1767884100685,6.24673063,134.06,134.03,0.2]
[1767884100989,5.57842308,134.07,134.03,13.8]
[1767884101191,13.03742396,134.07,134.03,13.8]
[1767884101388,5.57842308,134.06,134.03,13.8]
[1767884101568,5.57842308,134.05,134.03,13.8]
[1767884101767,8.12730843,134.07,134.03,13.8]
[1767884101970,5.57842308,134.04,134.0,0.2]
[1767884102195,5.57842308,134.05,134.01,13.6]
[1767884102382,5.57842308,134.03,134.01,13.6]
[1767884102581,6.29340424,134.04,134.01,13.6]
[1767884102892,5.57842308,134.02,134.0,0.2]
[1767884103060,0.71498116,134.02,134.0,13.60000001]
[1767884103265,6.96443384,134.08,134.0,13.60000001]
[1767884103266,8.17488418,134.05,134.0,13.60000001]
[1767884103491,5.57842308,134.03,134.0,13.60000001]
[1767884103697,5.57842308,134.02,134.0,1e-08]
[1767884103873,0.71498116,134.03,134.0,1e-08]
[1767884104074,6.29340424,134.03,134.01,13.6]
[1767884104383,13.75330726,134.05,134.01,13.6]
[1767884104582,18.64756371,134.07,134.01,13.6]
[1767884104583,0.71498116,134.07,134.02,0.67272745]
[1767884104771,6.29340424,134.05,134.01,13.6]
[1767884104973,5.57842308,134.06,134.02,13.6]
[1767884105168,6.29340424,134.07,134.02,26.63978672]
[1767884105367,37.28004771,134.12,134.02,26.63978672]
[1767884105368,0.67373314,134.09,134.04,6.25250968]
[1767884105569,18.64292299,134.1,134.06,5.57842308]
[1767884105570,0.67373314,134.1,134.06,5.57842308]
[1767884105889,6.25215622,134.13,134.08,5.57842308]
[1767884106288,6.25215622,134.12,134.07,5.57842308]
[1767884106491,6.25215622,134.12,134.08,19.19842308]
[1767884107081,0.67373314,134.12,134.08,19.19842308]
[1767884107274,7.4565655,134.11,134.08,13.62]
[1767884107794,6.25215622,134.13,134.09,13.62]
[1767884107999,13.70801795,134.13,134.09,13.62]
[1767884108174,13.70801795,134.13,134.07,13.62]
[1767884108175,6.25215622,134.1,134.07,13.62]
[1767884108373,5.57842308,134.09,134.07,13.62]
[1767884108592,0.67373314,134.07,134.01,0.6740866]
[1767884108795,0.67373314,134.07,134.02,19.87250968]
[1767884108796,5.57842308,134.07,134.02,19.87250968]
[1767884109098,6.25215622,134.08,134.03,5.57842308]
[1767884109272,6.25215622,134.08,134.04,13.62]
[1767884109472,6.25215622,134.07,134.04,13.62]
[1767884110395,5.57842308,134.06,134.04,13.62]
[1767884110699,59.84942989,134.13,134.04,13.62]
[1767884110700,13.70770995,134.13,134.06,0.81624817]
[1767884111002,5.57842308,134.12,134.07,13.62]
[1767884111173,0.67373314,134.12,134.07,19.19842308]
[1767884111376,0.67373314,134.11,134.07,5.57842308]
[1767884111592,0.67373314,134.11,134.08,13.62]
[1767884112104,0.67373314,134.11,134.09,13.62]
[1767884112602,0.67373314,134.11,134.07,13.03705122]
[1767884112603,5.57842308,134.08,134.01,8.13585387]
[1767884112788,0.28432314,134.11,134.03,0.6740866]
[1767884112987,63.37608785,134.12,134.03,0.6740866]
[1767884112988,5.57842308,134.08,134.04,14.2940866]
[1767884113297,5.57842308,134.1,134.05,0.6740866]
[1767884113502,5.57842308,134.09,134.05,0.6740866]
[1767884113798,5.57842308,134.09,134.06,13.62]
[1767884114904,26.19504014,134.12,134.07,0.6740866]
[1767884114905,7.45601629,134.12,134.07,0.6740866]
[1767884115091,5.57842308,134.11,134.07,0.6740866]
[1767884115282,5.57842308,134.11,134.08,13.62]
[1767884115483,5.57842308,134.11,134.07,8.13265348]
[1767884115800,5.57842308,134.11,134.08,13.62]
[1767884116604,7.45559371,134.13,134.08,14.2940866]
[1767884116805,5.57842308,134.12,134.08,14.2940866]
[1767884117604,5.57842308,134.14,134.1,0.6740866]
[1767884118104,5.57842308,134.13,134.1,0.6740866]
[1767884118396,7.45434215,134.15,134.11,14.2940866]
[1767884118596,25.85853378,134.2,134.11,14.2940866]
[1767884118597,0.57373314,134.19,134.12,0.6740866]
[1767884118801,5.57842308,134.16,134.12,0.6740866]
[1767884119004,37.25538425,134.21,134.12,0.6740866]
[1767884119005,5.57842308,134.14,134.12,0.6740866]
[1767884119194,5.57842308,134.13,134.1,0.6740866]
[1767884119499,5.57842308,134.12,134.1,0.6740866]
[1767884119703,5.57842308,134.11,134.08,0.6740866]
[1767884119900,5.57842308,134.1,134.08,0.6740866]
[1767884120108,5.57842308,134.1,134.09,13.62]
[1767884120305,5.57842308,134.1,134.08,0.6740866]
[1767884120512,5.57842308,134.1,134.08,14.2940866]
[1767884121801,5.57842308,134.09,134.06,0.6740866]
[1767884121988,5.57842308,134.08,134.06,0.6740866]
[1767884122184,5.57842308,134.07,134.06,0.6740866]
[1767884122393,5.57842308,134.07,134.04,0.6740866]
[1767884122591,9.10654128,134.06,134.04,0.6740866]
[1767884122809,9.10654128,134.07,134.04,0.6740866]
[1767884123188,8.01201982,134.11,134.05,8.13362891]
[1767884123503,9.10654128,134.07,134.05,0.6740866]
[1767884124087,9.10654128,134.08,134.05,0.6740866]
[1767884124587,7.45712155,134.1,134.05,0.6740866]
[1767884124787,9.10654128,134.08,134.05,8.13389296]
[1767884124990,9.10654128,134.1,134.06,0.6740866]
[1767884125295,9.10654128,134.09,134.06,0.6740866]
[1767884125813,9.10654128,134.1,134.06,8.13336823]
[1767884126211,9.10654128,134.11,134.07,0.6740866]
[1767884126388,7.45600954,134.12,134.07,0.6740866]
[1767884126713,9.10654128,134.11,134.07,0.6740866]
[1767884126910,16.56255082,134.12,134.07,9.78062788]
[1767884127207,7.45600954,134.12,134.07,9.78062788]
[1767884127399,7.45600954,134.12,134.08,0.6740866]
[1767884127586,9.10654128,134.12,134.08,0.6740866]
[1767884127984,9.10654128,134.15,134.1,9.78062788]
[1767884128208,16.56047631,134.16,134.12,0.6740866]
[1767884128713,9.10654128,134.16,134.12,0.6740866]
[1767884128920,16.56043831,134.16,134.12,0.6740866]
[1767884129098,9.10654128,134.15,134.12,0.6740866]
[1767884129631,9.10654128,134.16,134.12,0.6740866]
[1767884130086,9.10654128,134.15,134.11,13.62]
[1767884130287,9.10654128,134.12,134.08,0.6740866]
[1767884130483,9.10654128,134.12,134.09,13.62]
[1767884130719,9.10654128,134.13,134.1,0.6740866]
[1767884130894,9.10654128,134.12,134.1,0.6740866]
[1767884131090,9.10654128,134.12,134.08,0.6740866]
[1767884131290,9.10654128,134.1,134.08,0.6740866]
[1767884131498,9.10654128,134.1,134.07,0.6740866]
[1767884131898,9.10654128,134.09,134.07,0.6740866]
[1767884132108,18.74348198,134.13,134.07,0.6740866]
[1767884132109,16.56383891,134.1,134.07,0.6740866]
[1767884132994,16.56383891,134.1,134.05,0.70223208]
[1767884132995,9.10654128,134.08,134.05,0.70223208]
[1767884134520,9.10654128,134.09,134.05,0.70223208]
[1767884134825,9.10654128,134.08,134.05,0.70223208]
[1767884135029,7.45729763,134.1,134.05,0.70223208]
[1767884135325,9.10654128,134.08,134.05,0.70223208]
[1767884135514,7.45729763,134.1,134.05,17.26867426]
[1767884135718,16.56383891,134.1,134.05,8.16213298]
[1767884135923,16.56383891,134.1,134.05,17.26867426]
[1767884136091,9.10654128,134.08,134.05,0.70223208]
[1767884136296,7.45729763,134.1,134.05,0.70223208]
[1767884136495,9.10654128,134.08,134.05,0.70223208]
[1767884136916,9.10654128,134.09,134.05,0.70223208]
[1767884137218,9.10654128,134.08,134.05,0.70223208]
[1767884137417,9.10654128,134.09,134.05,0.70223208]
[1767884138318,9.10654128,134.1,134.07,0.70223208]
[1767884138918,7.45619437,134.12,134.07,0.70223208]
[1767884139221,9.10654128,134.11,134.07,0.70223208]
[1767884139936,7.45571455,134.13,134.08,0.70223208]
[1767884140219,9.10654128,134.15,134.11,0.70223208]
[1767884140517,9.10654128,134.14,134.11,0.70223208]
[1767884140699,16.56109117,134.15,134.11,0.70223208]
[1767884140912,7.45454989,134.15,134.11,0.70223208]
[1767884141105,9.10654128,134.14,134.11,0.70223208]
[1767884142525,16.56152883,134.14,134.11,0.70223208]
[1767884142903,9.10654128,134.13,134.09,14.32223208]
[1767884143103,7.45498755,134.14,134.09,0.70223208]
[1767884143104,9.10654128,134.12,134.09,0.70223208]
[1767884143715,21.05446428,134.15,134.1,0.70223208]
[1767884144027,9.10654128,134.15,134.11,0.70223208]
[1767884144332,9.10654128,134.14,134.11,0.70223208]
[1767884144533,16.56162403,134.14,134.11,0.70223208]
[1767884145335,9.10654128,134.15,134.11,0.70223208]
[1767884145542,9.10654128,134.14,134.11,0.70223208]
[1767884146735,9.10654128,134.12,134.07,0.70223208]
[1767884146907,9.10654128,134.11,134.07,0.70223208]
[1767884147108,9.10654128,134.09,134.06,0.70223208]
[1767884147504,9.10654128,134.1,134.06,0.70223208]
[1767884147710,9.10654128,134.09,134.06,0.70223208]
[1767884147915,9.10654128,134.08,134.05,0.70223208]
[1767884148139,9.10654128,134.11,134.07,0.70223208]
[1767884148429,9.10654128,134.1,134.07,0.70223208]
[1767884148750,9.10654128,134.08,134.05,0.70223208]
[1767884149111,9.10654128,134.09,134.05,0.70223208]
[1767884149310,9.10654128,134.08,134.05,0.70223208]
[1767884149606,7.4572896,134.1,134.03,0.70223208]
[1767884149607,9.10654128,134.06,134.03,0.70223208]
[1767884149827,0.56433294,134.09,134.03,0.70223208]
[1767884150026,9.10654128,134.06,134.03,0.70223208]
[1767884150708,7.45823389,134.08,134.03,0.70223208]
[1767884150908,9.10654128,134.07,134.03,0.70223208]
[1767884151133,9.10654128,134.06,134.03,0.70223208]
[1767884151528,9.10654128,134.07,134.03,0.70223208]
[1767884151727,9.10654128,134.07,134.01,14.30223208]
[1767884151728,9.10654128,134.05,134.01,14.30223208]
[1767884152041,9.10654128,134.04,134.01,0.70223208]
[1767884152225,0.11282085,134.06,134.01,0.70223208]
[1767884152534,9.10654128,134.05,134.01,9.80877336]
[1767884152840,16.56688742,134.05,134.01,0.70223208]
[1767884153038,16.56688742,134.05,134.0,0.70223209]
[1767884153039,9.10654128,134.03,134.0,0.70223209]
[1767884153335,7.46034614,134.05,134.0,0.70223209]
[1767884153509,9.10654128,134.03,134.0,0.70223209]
[1767884153930,9.10654128,134.04,134.01,0.70223208]
[1767884154136,9.10654128,134.04,134.0,0.70223209]
[1767884154611,9.10654128,134.03,134.0,0.70223209]
[1767884154810,16.56761627,134.03,134.0,0.70223209]
[1767884155011,16.56761627,134.03,134.0,1e-08]
[1767884155824,7.46107499,134.03,134.0,1e-08]
[1767884156031,16.67131613,134.03,134.0,1e-08]
[1767884156342,0.10369986,134.03,134.0,16.56917034]
[1767884156717,17.14060993,134.05,134.0,17.27140242]
[1767884157338,8.03406865,134.05,134.0,17.27140242]
[1767884157517,16.56700851,134.04,134.0,9.80877337]
[1767884157840,9.10654128,134.02,134.0,1e-08]
[1767884158150,7.55946723,134.04,134.0,1e-08]
[1767884158436,16.56700851,134.04,134.0,0.70223209]
[1767884158735,7.46010499,134.05,134.01,9.80877336]
[1767884159036,16.5660973,134.06,134.02,9.80877336]
[1767884159634,103.57373314,134.1,134.03,0.70223208]
[1767884159820,9.10654128,134.07,134.04,0.70223208]
[1767884160537,7.45767767,134.09,134.02,7.46156105]
[1767884160538,7.45767767,134.09,134.05,9.80877336]
[1767884160741,16.56421895,134.09,134.05,9.80877336]
[1767884160928,9.10654128,134.07,134.03,0.70223208]
[1767884161241,9.10654128,134.07,134.04,0.70223208]
[1767884161435,9.21936213,134.05,134.0,1e-08]
[1767884161646,9.10654128,134.01,134.0,1e-08]
[1767884161941,9.22812373,134.01,133.96,0.70223208]
[1767884162139,40.3072898,134.03,133.96,9.80877336]
[1767884162329,9.10654128,134.0,133.96,9.80877336]
[1767884162528,9.10654128,134.0,133.96,0.70223208]
[1767884162848,26.6872898,134.03,133.97,0.69574261]
[1767884163049,9.10654128,134.0,133.95,17.26751251]
[1767884163350,9.10654128,134.0,133.96,9.80228389]
[1767884163734,7.46246243,134.01,133.96,9.80228389]
[1767884163929,7.56079157,134.02,133.97,0.69574261]
[1767884164136,9.10654128,134.0,133.97,0.69574261]
[1767884164441,9.10654128,133.99,133.96,0.69574261]
[1767884164639,26.21472381,134.02,133.96,0.69574261]
[1767884164949,7.56079157,134.02,133.97,9.77546356]
[1767884165121,16.56760776,134.03,133.99,0.66892228]
[1767884165322,0.10369986,134.02,133.97,0.66892228]
[1767884165544,9.10654128,134.0,133.97,0.66892228]
[1767884166030,18.75839205,134.02,133.97,0.66892228]
[1767884166031,16.56832005,134.02,133.98,0.66892228]
[1767884166347,9.10654128,134.01,133.98,0.66892228]
[1767884166545,7.46177877,134.02,133.98,0.66892228]
[1767884166739,16.56832005,134.02,133.98,0.66892228]
[1767884167043,7.46177877,134.02,133.98,0.66892228]
[1767884167248,16.56832005,134.02,133.98,0.66892228]
[1767884167416,9.10654128,134.01,133.98,0.66892228]
[1767884167617,9.10654128,133.99,133.94,0.66892228]
[1767884167828,9.10654128,133.98,133.94,0.66892228]
[1767884168047,9.10654128,133.98,133.95,0.66892228]
[1767884168250,9.10654128,133.99,133.95,17.2408842]
[1767884168454,7.46268656,134.0,133.95,0.66892228]
[1767884168455,9.10654128,133.98,133.95,0.66892228]
[1767884168739,9.10654128,133.99,133.96,0.66892228]
[1767884168944,9.10654128,133.98,133.96,0.66892228]
[1767884169143,9.10654128,133.98,133.94,0.66892228]
[1767884169344,9.10654128,133.97,133.94,0.66892228]
[1767884169536,9.10654128,133.98,133.94,0.66892228]
[1767884169940,16.57048899,133.98,133.94,0.66892228]
[1767884170248,16.57048899,133.98,133.94,9.77546356]
[1767884170446,9.10654128,133.97,133.94,0.66892228]
[1767884171054,9.10654128,133.96,133.94,0.66892228]
[1767884171226,9.10654128,133.97,133.94,0.66892228]
[1767884171942,16.57048899,133.98,133.94,9.77546356]
[1767884172142,9.10654128,133.96,133.92,0.86892228]
[1767884172339,9.10654128,133.95,133.92,0.86892228]
[1767884172526,9.10654128,133.96,133.93,0.66892228]
[1767884172728,6.24240613,134.09,133.96,0.66892228]
[1767884173029,6.24240613,134.09,133.97,9.10654128]
[1767884173030,9.10654128,134.02,133.97,9.10654128]
[1767884173230,9.82944351,134.02,133.97,9.10654128]
[1767884173425,0.72290223,134.01,133.96,0.66892228]
[1767884173643,0.72290223,134.05,133.99,9.77546356]
[1767884173842,7.46045956,134.04,133.99,9.77546356]
[1767884174048,7.46045956,134.04,134.0,9.10654128]
[1767884174536,8.18336179,134.04,134.0,9.10654128]
[1767884175056,9.82944351,134.03,133.99,9.10654128]
[1767884175253,0.72290223,134.03,133.99,9.10654128]
[1767884175751,0.72290223,134.03,134.0,9.10654128]
[1767884176051,0.72290223,134.03,134.01,9.10654128]
[1767884176231,8.18393342,134.03,134.01,9.10654128]
[1767884176431,8.18305673,134.05,134.01,9.10654128]
[1767884176625,8.18305673,134.05,133.99,7.46312975]
[1767884176626,0.72290223,134.04,134.02,9.10654128]
[1767884176832,8.18232901,134.06,134.03,9.10654128]
[1767884177173,7.45942678,134.06,134.03,9.10654128]
[1767884177450,0.72290223,134.05,134.03,9.10654128]
[1767884177851,0.62290223,134.04,134.01,9.10654128]
[1767884178155,0.099,134.03,133.97,21.75311064]
[1767884178340,0.099,134.03,134.0,9.10654128]
[1767884178556,9.10654128,134.03,133.97,13.62]
[1767884178869,9.10654128,134.02,133.98,9.10654128]
[1767884179166,9.10654128,134.01,133.97,9.10654128]
[1767884179350,9.10654128,134.01,133.96,0.66892228]
[1767884179669,9.10654128,134.0,133.95,9.10654128]
[1767884179865,9.10654128,133.99,133.94,0.66892228]
[1767884180046,26.11745391,134.01,133.96,9.77546356]
[1767884180247,7.46212969,134.01,133.97,9.77546356]
[1767884180573,7.46212969,134.01,133.98,9.77546356]
[1767884180951,7.46212969,134.01,133.98,0.66892228]
[1767884181166,7.46212969,134.01,133.96,0.66892228]
[1767884181479,7.46212969,134.01,133.98,9.10654128]
[1767884181654,7.46159739,134.02,133.99,9.10654128]
[1767884181972,16.56813867,134.02,133.95,7.46527403]
[1767884182201,35.22207091,134.02,133.98,9.10654128]
[1767884182352,9.10654128,134.01,133.97,9.77546356]
[1767884182861,26.11552963,134.02,133.97,9.77546356]
[1767884183052,35.22207091,134.02,133.97,9.77546356]
[1767884183251,35.22207091,134.02,133.98,0.66892228]
[1767884183447,9.10654128,134.01,133.95,0.66892228]
[1767884183662,9.10654128,134.01,133.96,9.77546356]
[1767884183974,35.22207091,134.02,133.98,9.10654128]
[1767884184275,9.10654128,134.01,133.97,9.77546356]
[1767884184571,5.60883165,134.01,133.97,6.27775393]
[1767884184978,5.60883165,134.01,133.97,0.66892228]
[1767884185175,5.60883165,134.01,133.96,5.60883165]
[1767884185349,5.60883165,133.99,133.95,6.27775393]
[1767884185667,26.11552963,134.02,133.95,6.27775393]
[1767884185870,26.11552963,134.02,133.93,6.27775393]
[1767884185871,5.60883165,133.97,133.93,6.27775393]
[1767884186087,5.60883165,133.96,133.92,0.2]
[1767884186676,5.60883165,133.95,133.91,0.2]
[1767884186852,5.60883165,133.94,133.91,1e-08]
[1767884187172,5.60883165,133.93,133.9,1e-08]
[1767884187682,5.60883165,133.92,133.9,1e-08]
[1767884188053,26.13110347,133.94,133.9,1e-08]
[1767884188464,13.07486121,133.94,133.9,6.27775394]
[1767884188751,13.62,133.95,133.9,6.27775394]
[1767884188752,21.0851279,133.96,133.92,0.66892228]
[1767884188960,21.0851279,133.96,133.93,6.27775393]
[1767884188961,7.4651279,133.96,133.93,6.27775393]
[1767884189162,21.24240613,134.07,133.93,0.66892228]
[1767884189163,18.65734742,134.0,133.93,0.66892228]
[1767884189376,18.65734742,134.0,133.94,6.27775393]
[1767884189377,5.60883165,133.98,133.94,6.27775393]
[1767884189568,13.07265426,133.98,133.94,6.27775393]
[1767884189774,7.46382261,133.98,133.94,6.27775393]
[1767884190073,13.07265426,133.98,133.94,6.27775393]
[1767884190653,7.46382261,133.98,133.94,0.66892228]
[1767884190854,7.46346523,133.99,133.96,0.66892228]
[1767884191072,13.07229688,133.99,133.96,0.66892228]
[1767884191266,13.07229688,133.99,133.94,0.66892228]
[1767884191461,5.60883165,133.98,133.94,6.27775393]
[1767884191779,5.60883165,133.98,133.94,0.66892228]
[1767884191955,26.12157404,133.99,133.95,0.6]
[1767884192150,31.73040569,133.99,133.95,0.6]
[1767884192370,7.46289337,134.0,133.96,6.2665388]
[1767884192574,26.10966057,134.05,134.0,0.65770715]
[1767884192773,26.10966057,134.05,134.01,6.2665388]
[1767884192974,5.60883165,134.06,134.04,5.60883165]
[1767884192975,7.45955276,134.06,134.04,5.60883165]
[1767884193153,7.45955276,134.06,134.03,0.65770715]
[1767884193769,7.45955276,134.06,134.03,6.2665388]
[1767884194370,31.71675081,134.06,134.01,6.2665388]
[1767884194781,26.10791916,134.06,134.01,6.2665388]
[1767884194976,5.60883165,134.05,133.99,0.65770715]
[1767884195280,5.60883165,134.05,134.0,6.2665388]
[1767884195459,5.60883165,134.05,134.0,0.65770715]
[1767884195662,5.60883165,134.03,133.98,0.65770715]
[1767884195879,5.60883165,134.04,134.0,5.60883165]
[1767884196265,5.60883165,134.04,133.98,0.65770715]
[1767884196488,5.60883165,134.04,133.99,6.2665388]
[1767884196781,5.60883165,134.04,134.0,5.60883165]
[1767884196985,7.46101619,134.03,134.0,5.60883165]
[1767884197477,13.06984784,134.03,133.99,6.2665388]
[1767884197670,7.45990302,134.05,134.01,5.60883165]
[1767884197853,7.45990302,134.05,134.01,6.2665388]
[1767884197854,13.06873467,134.05,134.01,6.2665388]
[1767884198484,5.60883165,134.04,134.01,0.65770715]
[1767884199081,7.46074195,134.04,134.01,5.60883165]
[1767884199287,13.0695736,134.04,133.99,0.65770715]
[1767884199493,13.0695736,134.04,134.0,5.60883165]
[1767884199780,13.0695736,134.04,133.99,0.65770715]
[1767884199781,7.46074195,134.04,134.01,6.2665388]
[1767884200281,7.46074195,134.04,134.0,5.60883165]
[1767884200479,5.60883165,134.03,133.95,0.6]
[1767884200683,5.60883165,133.98,133.95,0.6]
[1767884200871,5.60883165,134.0,133.96,0.65770715]
[1767884201076,7.46324352,133.99,133.96,0.65770715]
[1767884201300,5.60883165,134.02,133.97,6.2665388]
[1767884201590,21.08157289,134.02,133.98,0.65770715]
[1767884201763,21.08157289,134.02,133.98,6.2665388]
[1767884202079,5.60883165,134.01,133.98,0.65770715]
[1767884202867,13.07005675,134.03,134.0,0.65770715]
[1767884203184,13.06953721,134.04,134.01,0.65770715]
[1767884203484,7.46010828,134.05,134.01,0.65770715]
[1767884203687,13.06893993,134.05,134.01,0.65770715]
[1767884203987,7.45879018,134.07,134.02,0.65770715]
[1767884204182,5.60883165,134.05,134.02,0.65770715]
[1767884204378,5.60883165,134.03,134.02,0.65770715]
[1767884204882,5.60883165,134.03,134.0,0.65770715]
[1767884205287,7.46013033,134.05,134.02,0.65770715]
[1767884205488,13.06896198,134.05,134.02,0.65770715]
[1767884205790,13.06896198,134.05,134.0,6.2665388]
[1767884206085,13.06896198,134.05,134.01,0.65770715]
[1767884206283,5.60883165,134.04,134.01,0.65770715]
[1767884206473,5.60883165,134.03,134.01,0.65770715]
[1767884206867,5.60883165,134.03,134.02,1.6]
[1767884207071,13.06984784,134.03,134.02,1.6]
[1767884207267,7.46101619,134.03,134.02,1.6]
[1767884207474,13.06984784,134.03,134.02,1.6]
[1767884207891,13.06984784,134.03,133.97,0.65770715]
[1767884208063,5.60883165,133.98,133.95,0.65770715]
[1767884208585,5.60883165,133.96,133.93,0.65770715]
[1767884208770,5.60883165,133.95,133.93,0.65770715]
[1767884208969,5.60883165,133.94,133.93,0.65770715]
[1767884209161,5.60883165,133.94,133.91,0.65770715]
[1767884209365,5.60883165,133.94,133.9,1e-08]
[1767884209565,5.60883165,133.94,133.9,0.65770716]
[1767884209793,18.66237035,133.96,133.9,0.65770716]
[1767884210095,5.60883165,133.94,133.9,0.65770716]
[1767884210276,32.2802612,133.98,133.92,0.65770715]
[1767884210588,39.74525192,133.97,133.92,0.65770715]
[1767884210764,5.60883165,133.93,133.9,0.65770716]
[1767884210971,5.60883165,133.92,133.9,1e-08]
[1767884211165,5.60883165,133.91,133.9,1e-08]
[1767884212389,13.07653383,133.91,133.9,1e-08]
[1767884212566,7.46719855,133.92,133.9,1e-08]
[1767884212767,5.60883165,133.91,133.9,1e-08]
[1767884213583,7.46719855,133.92,133.9,1e-08]
[1767884213893,13.0760302,133.92,133.9,1e-08]
[1767884214088,5.60883165,133.91,133.9,1e-08]
[1767884214268,5.60883165,133.92,133.9,1e-08]
[1767884214473,18.66430955,133.95,133.9,1e-08]
[1767884214474,5.60883165,133.93,133.9,1e-08]
[1767884215192,13.07501756,133.94,133.9,0.65770716]
[1767884215779,5.60883165,133.93,133.9,0.65770716]
[1767884216071,7.4656674,133.95,133.9,0.65770716]
[1767884216271,5.60883165,133.93,133.9,0.65770716]
[1767884216989,5.60883165,133.94,133.9,0.65770716]
[1767884219070,5.60883165,133.93,133.9,0.65770716]
[1767884219275,5.60883165,133.92,133.9,0.65770716]